[Event "Late-Titled-Tuesday-Blitz-January-16-2024"]
[Site "Chess.com"]
[Date "2024.01.16"]
[Round "8"]
[White "MrChessSponge"]
[Black "Ticondriul"]
[Result "0-1"]
[WhiteElo "2546"]
[BlackElo "2725"]
[TimeControl "180+1"]
[EndTime "15:27:57 PST"]
[Termination "Ticondriul won by resignation"]

1. Nf3 {[%clk 0:02:59.5]} 1... Nc6 {[%clk 0:02:58.8]} 2. d4 {[%clk 0:02:57.9]}
2... d5 {[%clk 0:02:58.8]} 3. c4 {[%clk 0:02:57.4]} 3... Bg4 {[%clk 0:02:58.4]}
4. Nc3 {[%clk 0:02:56.1]} 4... Nf6 {[%clk 0:02:56.1]} 5. cxd5 {[%clk 0:02:51.2]}
5... Nxd5 {[%clk 0:02:55.5]} 6. e4 {[%clk 0:02:50.4]} 6... Nxc3 {[%clk
0:02:55.5]} 7. bxc3 {[%clk 0:02:50.3]} 7... e6 {[%clk 0:02:54.4]} 8. Rb1 {[%clk
0:02:46.7]} 8... Rb8 {[%clk 0:02:53]} 9. Bb5 {[%clk 0:02:44.2]} 9... a6 {[%clk
0:02:52.2]} 10. Bxc6+ {[%clk 0:02:18.3]} 10... bxc6 {[%clk 0:02:52.3]} 11. Rxb8
{[%clk 0:02:17.7]} 11... Qxb8 {[%clk 0:02:52.7]} 12. O-O {[%clk 0:02:17.5]}
12... Be7 {[%clk 0:02:52.4]} 13. Bf4 {[%clk 0:02:08.8]} 13... O-O {[%clk
0:02:51.5]} 14. Qd3 {[%clk 0:02:07.3]} 14... c5 {[%clk 0:02:51.6]} 15. Rb1
{[%clk 0:02:02.8]} 15... Qe8 {[%clk 0:02:47.8]} 16. Ne5 {[%clk 0:02:00.8]} 16...
Bh5 {[%clk 0:02:47]} 17. Qxa6 {[%clk 0:01:59.3]} 17... cxd4 {[%clk 0:02:46.2]}
18. cxd4 {[%clk 0:01:58.5]} 18... Bd6 {[%clk 0:02:46.5]} 19. Bg3 {[%clk
0:01:54.3]} 19... Qa8 {[%clk 0:02:45.9]} 20. Qc4 {[%clk 0:01:35.7]} 20... Qxe4
{[%clk 0:02:44.5]} 21. Rc1 {[%clk 0:01:22.6]} 21... Ba3 {[%clk 0:02:18.3]} 22.
Rf1 {[%clk 0:00:56.6]} 22... Be2 {[%clk 0:02:11.9]} 23. Re1 {[%clk 0:00:40.6]}
23... Bxc4 {[%clk 0:02:11.9]} 24. Rxe4 {[%clk 0:00:40.6]} 24... Bxa2 {[%clk
0:02:12]} 25. Re1 {[%clk 0:00:39]} 25... Bd5 {[%clk 0:02:11.8]} 26. Nd7 {[%clk
0:00:36.6]} 26... Rd8 {[%clk 0:02:11]} 27. Ne5 {[%clk 0:00:26.2]} 27... f6
{[%clk 0:02:08.9]} 28. Nd3 {[%clk 0:00:24.6]} 28... c6 {[%clk 0:02:07.5]} 29.
Nf4 {[%clk 0:00:22.5]} 29... Kf7 {[%clk 0:02:01.2]} 30. f3 {[%clk 0:00:22.9]}
30... Bb2 {[%clk 0:02:00.2]} 31. Bf2 {[%clk 0:00:21.6]} 31... g5 {[%clk
0:01:59.3]} 32. Nd3 {[%clk 0:00:20.3]} 32... Bc3 {[%clk 0:01:57.8]} 33. Rc1
{[%clk 0:00:20]} 33... Ba5 {[%clk 0:01:57.7]} 34. Ra1 {[%clk 0:00:20]} 34... Bb6
{[%clk 0:01:57.5]} 35. Ra6 {[%clk 0:00:18.8]} 35... Bxd4 {[%clk 0:01:53.3]} 36.
Bxd4 {[%clk 0:00:17.4]} 36... Bc4 {[%clk 0:01:53.9]} 37. Ra7+ {[%clk 0:00:17.6]}
37... Kg6 {[%clk 0:01:54.1]} 38. Bxf6 {[%clk 0:00:17.1]} 38... Rxd3 {[%clk
0:01:53.7]} 39. Be5 {[%clk 0:00:15.4]} 39... h5 {[%clk 0:01:53.1]} 40. Rg7+
{[%clk 0:00:14.4]} 40... Kf5 {[%clk 0:01:52.5]} 41. Bc7 {[%clk 0:00:13.7]} 41...
h4 {[%clk 0:01:49.7]} 42. h3 {[%clk 0:00:13.8]} 42... Rd1+ {[%clk 0:01:49]} 43.
Kh2 {[%clk 0:00:13.8]} 43... Rd2 {[%clk 0:01:47.9]} 44. Rf7+ {[%clk 0:00:13.8]}
44... Kg6 {[%clk 0:01:47.8]} 45. Re7 {[%clk 0:00:12.3]} 45... Kf6 {[%clk
0:01:47.1]} 46. Re8 {[%clk 0:00:11.6]} 46... Bf1 {[%clk 0:01:46.7]} 47. Bd8+
{[%clk 0:00:10.9]} 47... Kf7 {[%clk 0:01:46.3]} 48. Rh8 {[%clk 0:00:10.3]} 48...
Rxg2+ {[%clk 0:01:45.6]} 49. Kh1 {[%clk 0:00:10.6]} 49... Rg3 {[%clk 0:01:46]}
50. Rh5 {[%clk 0:00:09.6]} 50... Bxh3 {[%clk 0:01:41.4]} 51. Rxg5 {[%clk
0:00:09.5]} 51... Rxf3 {[%clk 0:01:40.5]} 52. Rh5 {[%clk 0:00:09.2]} 52... Rd3
{[%clk 0:01:35.9]} 53. Bxh4 {[%clk 0:00:08.1]} 53... Bg4 {[%clk 0:01:35.4]} 54.
Rg5 {[%clk 0:00:07.2]} 54... Rh3+ {[%clk 0:01:35]} 0-1

[Event "Late-Titled-Tuesday-Blitz-January-16-2024"]
[Site "Chess.com"]
[Date "2024.01.16"]
[Round "8"]
[White "cthulhuuu"]
[Black "Hirna2005"]
[Result "1-0"]
[WhiteElo "2446"]
[BlackElo "2268"]
[TimeControl "180+1"]
[EndTime "15:27:57 PST"]
[Termination "cthulhuuu won by resignation"]

1. e4 {[%clk 0:03:00]} 1... g6 {[%clk 0:02:59]} 2. d4 {[%clk 0:03:00.1]} 2...
Bg7 {[%clk 0:02:58.3]} 3. Nc3 {[%clk 0:03:00.5]} 3... d6 {[%clk 0:02:58.5]} 4.
f4 {[%clk 0:03:00.7]} 4... a6 {[%clk 0:02:58.4]} 5. Nf3 {[%clk 0:02:58.9]} 5...
b5 {[%clk 0:02:58.1]} 6. Be2 {[%clk 0:02:58.2]} 6... Bb7 {[%clk 0:02:56.6]} 7.
a3 {[%clk 0:02:54.5]} 7... Nf6 {[%clk 0:02:55.8]} 8. e5 {[%clk 0:02:54.6]} 8...
Nd5 {[%clk 0:02:55.8]} 9. Nxd5 {[%clk 0:02:45.3]} 9... Bxd5 {[%clk 0:02:55.5]}
10. O-O {[%clk 0:02:45.1]} 10... O-O {[%clk 0:02:55.1]} 11. Be3 {[%clk
0:02:45.2]} 11... Nd7 {[%clk 0:02:51.6]} 12. b3 {[%clk 0:02:44.7]} 12... Nb6
{[%clk 0:02:49.6]} 13. Rc1 {[%clk 0:02:42.5]} 13... Bb7 {[%clk 0:02:07.7]} 14.
c4 {[%clk 0:02:41]} 14... c6 {[%clk 0:02:06.8]} 15. a4 {[%clk 0:02:31.3]} 15...
Rc8 {[%clk 0:02:01.8]} 16. axb5 {[%clk 0:02:11.2]} 16... axb5 {[%clk 0:01:48.7]}
17. cxb5 {[%clk 0:02:12.1]} 17... Nd5 {[%clk 0:01:48.7]} 18. Bd2 {[%clk
0:02:08.8]} 18... dxe5 {[%clk 0:01:35.4]} 19. fxe5 {[%clk 0:02:00.8]} 19... cxb5
{[%clk 0:01:35.5]} 20. Bxb5 {[%clk 0:01:56.8]} 20... Qb6 {[%clk 0:01:35.4]} 21.
Bc4 {[%clk 0:01:50.5]} 21... e6 {[%clk 0:01:26.9]} 22. Kh1 {[%clk 0:01:49.7]}
22... Rfd8 {[%clk 0:01:21.8]} 23. Qe1 {[%clk 0:01:43.7]} 23... Rd7 {[%clk
0:01:09.5]} 24. Qh4 {[%clk 0:01:29.3]} 24... Bf8 {[%clk 0:00:41.1]} 25. Ng5
{[%clk 0:01:12.9]} 25... h6 {[%clk 0:00:40.6]} 26. Ne4 {[%clk 0:01:04.5]} 26...
g5 {[%clk 0:00:31.6]} 27. Bxg5 {[%clk 0:01:01.2]} 27... hxg5 {[%clk 0:00:30.9]}
28. Qxg5+ {[%clk 0:01:01.3]} 28... Bg7 {[%clk 0:00:31.1]} 29. Bxd5 {[%clk
0:01:00.9]} 29... Rxc1 {[%clk 0:00:26.1]} 30. Nf6+ {[%clk 0:01:00.9]} 30... Kf8
{[%clk 0:00:20.1]} 31. Nxd7+ {[%clk 0:01:00.5]} 31... Ke8 {[%clk 0:00:20.5]} 32.
Rxc1 {[%clk 0:00:59.4]} 32... Kxd7 {[%clk 0:00:20]} 33. Bxb7 {[%clk 0:00:57.6]}
33... Qxb7 {[%clk 0:00:18.4]} 34. Qxg7 {[%clk 0:00:57.2]} 34... Ke8 {[%clk
0:00:18.5]} 35. Qg8+ {[%clk 0:00:55.2]} 35... Ke7 {[%clk 0:00:18.9]} 36. Rc8
{[%clk 0:00:53.2]} 36... Qb6 {[%clk 0:00:14.8]} 37. Qf8+ {[%clk 0:00:52.4]} 1-0

[Event "Late-Titled-Tuesday-Blitz-January-16-2024"]
[Site "Chess.com"]
[Date "2024.01.16"]
[Round "8"]
[White "mightysmasher"]
[Black "tolimachess"]
[Result "1-0"]
[WhiteElo "2570"]
[BlackElo "2444"]
[TimeControl "180+1"]
[EndTime "15:27:58 PST"]
[Termination "mightysmasher won by checkmate"]

1. e4 {[%clk 0:02:43]} 1... c5 {[%clk 0:02:59.6]} 2. c3 {[%clk 0:02:43]} 2... d5
{[%clk 0:02:55.6]} 3. exd5 {[%clk 0:02:43]} 3... Qxd5 {[%clk 0:02:56.5]} 4. d4
{[%clk 0:02:43.5]} 4... Nc6 {[%clk 0:02:54.4]} 5. Nf3 {[%clk 0:02:43.5]} 5...
Bg4 {[%clk 0:02:54.5]} 6. Nbd2 {[%clk 0:02:42.2]} 6... e5 {[%clk 0:02:45.1]} 7.
Bc4 {[%clk 0:02:41.5]} 7... Qd6 {[%clk 0:02:23.5]} 8. d5 {[%clk 0:02:37.6]} 8...
Nb8 {[%clk 0:02:10.9]} 9. Ne4 {[%clk 0:02:35.1]} 9... Qg6 {[%clk 0:02:03.2]} 10.
Ng3 {[%clk 0:02:34]} 10... Bd6 {[%clk 0:02:01.2]} 11. Bd3 {[%clk 0:02:23.5]}
11... f5 {[%clk 0:01:53.3]} 12. Qa4+ {[%clk 0:02:15.1]} 12... Nd7 {[%clk
0:01:50.4]} 13. Bb5 {[%clk 0:02:13.7]} 13... Nf6 {[%clk 0:01:45.4]} 14. Nh4
{[%clk 0:02:04]} 14... Qf7 {[%clk 0:01:41.1]} 15. Nhxf5 {[%clk 0:01:59.9]} 15...
Bxf5 {[%clk 0:01:18.2]} 16. Nxf5 {[%clk 0:01:59.3]} 16... Qxd5 {[%clk
0:01:18.9]} 17. O-O {[%clk 0:01:44.2]} 17... Bf8 {[%clk 0:01:06.7]} 18. Rd1
{[%clk 0:01:36.2]} 18... Qe6 {[%clk 0:01:06.3]} 19. Bg5 {[%clk 0:01:36.3]} 19...
O-O-O {[%clk 0:00:53]} 20. Bxf6 {[%clk 0:01:19.2]} 20... Nxf6 {[%clk 0:00:39]}
21. Qxa7 {[%clk 0:01:12.4]} 21... Be7 {[%clk 0:00:14.4]} 22. Nxe7+ {[%clk
0:01:07.5]} 22... Qxe7 {[%clk 0:00:15.3]} 23. Bc6 {[%clk 0:00:53]} 23... Qc7
{[%clk 0:00:06]} 24. Bb5 {[%clk 0:00:36.7]} 24... b6 {[%clk 0:00:03.5]} 25. Ba6+
{[%clk 0:00:35.8]} 25... Qb7 {[%clk 0:00:02.7]} 26. Qa8+ {[%clk 0:00:33.9]}
26... Kc7 {[%clk 0:00:01.8]} 27. Qxb7# {[%clk 0:00:33.9]} 1-0

[Event "Late-Titled-Tuesday-Blitz-January-16-2024"]
[Site "Chess.com"]
[Date "2024.01.16"]
[Round "8"]
[White "laskakid"]
[Black "vova-79"]
[Result "1/2-1/2"]
[WhiteElo "2320"]
[BlackElo "2577"]
[TimeControl "180+1"]
[EndTime "15:28:07 PST"]
[Termination "Game drawn by repetition"]

1. d4 {[%clk 0:03:00.9]} 1... d5 {[%clk 0:02:59.5]} 2. c4 {[%clk 0:03:01]} 2...
c6 {[%clk 0:02:59.4]} 3. cxd5 {[%clk 0:03:00.4]} 3... cxd5 {[%clk 0:02:58.7]} 4.
Bf4 {[%clk 0:03:00.6]} 4... Nf6 {[%clk 0:02:58.6]} 5. e3 {[%clk 0:03:00.2]} 5...
Nc6 {[%clk 0:02:59.2]} 6. Nc3 {[%clk 0:03:00.3]} 6... Bf5 {[%clk 0:02:58.6]} 7.
Qb3 {[%clk 0:02:53.5]} 7... Na5 {[%clk 0:02:52.1]} 8. Qa4+ {[%clk 0:02:53.5]}
8... Bd7 {[%clk 0:02:48.5]} 9. Qc2 {[%clk 0:02:53.2]} 9... Rc8 {[%clk 0:02:48]}
10. Bd3 {[%clk 0:02:50.6]} 10... e6 {[%clk 0:02:48.5]} 11. Nf3 {[%clk
0:02:44.6]} 11... Bb4 {[%clk 0:02:48.8]} 12. O-O {[%clk 0:02:41.3]} 12... O-O
{[%clk 0:02:49.3]} 13. Ne5 {[%clk 0:02:39.6]} 13... a6 {[%clk 0:02:47.4]} 14.
Bg5 {[%clk 0:02:31.2]} 14... h6 {[%clk 0:02:46.3]} 15. Bh4 {[%clk 0:02:24.5]}
15... Bxc3 {[%clk 0:02:44.1]} 16. bxc3 {[%clk 0:02:24.1]} 16... Bb5 {[%clk
0:02:43.7]} 17. Bxb5 {[%clk 0:02:06.8]} 17... axb5 {[%clk 0:02:44.6]} 18. Bxf6
{[%clk 0:02:06.7]} 18... gxf6 {[%clk 0:02:43.4]} 19. Ng4 {[%clk 0:02:03.8]}
19... Kg7 {[%clk 0:02:38.1]} 20. f4 {[%clk 0:01:48]} 20... b4 {[%clk 0:02:30.6]}
21. Qf2 {[%clk 0:01:42]} 21... f5 {[%clk 0:02:14.2]} 22. cxb4 {[%clk 0:01:31]}
22... Nc6 {[%clk 0:02:02.5]} 23. Ne5 {[%clk 0:01:23.1]} 23... Nxb4 {[%clk
0:01:50.7]} 24. Rab1 {[%clk 0:01:16.1]} 24... Nc6 {[%clk 0:01:32.5]} 25. Rxb7
{[%clk 0:01:13.8]} 25... Nxe5 {[%clk 0:01:32.4]} 26. fxe5 {[%clk 0:01:12.4]}
26... Rc7 {[%clk 0:01:31]} 27. Rxc7 {[%clk 0:01:00.5]} 27... Qxc7 {[%clk
0:01:30.9]} 28. Qh4 {[%clk 0:01:00.8]} 28... Qc3 {[%clk 0:01:20.7]} 29. Qf6+
{[%clk 0:00:50.5]} 29... Kh7 {[%clk 0:01:20.2]} 30. Qe7 {[%clk 0:00:34.1]} 30...
Qxe3+ {[%clk 0:01:17.7]} 31. Kh1 {[%clk 0:00:34.2]} 31... Kg8 {[%clk 0:01:16.2]}
32. Qc5 {[%clk 0:00:21.1]} 32... Qe2 {[%clk 0:01:03.1]} 33. Rg1 {[%clk
0:00:20.7]} 33... Qxa2 {[%clk 0:01:02.7]} 34. g4 {[%clk 0:00:19.5]} 34... f4
{[%clk 0:01:00.7]} 35. g5 {[%clk 0:00:19.3]} 35... Qe2 {[%clk 0:00:37.3]} 36.
gxh6+ {[%clk 0:00:18.2]} 36... Kh7 {[%clk 0:00:37.9]} 37. Qxf8 {[%clk
0:00:15.8]} 37... Qf3+ {[%clk 0:00:37.1]} 38. Rg2 {[%clk 0:00:16.2]} 38... Qf1+
{[%clk 0:00:37.2]} 39. Rg1 {[%clk 0:00:16.6]} 39... Qf3+ {[%clk 0:00:37.8]} 40.
Rg2 {[%clk 0:00:17]} 40... Qf1+ {[%clk 0:00:38.3]} 41. Rg1 {[%clk 0:00:17.4]}
41... Qf3+ {[%clk 0:00:38.7]} 1/2-1/2

[Event "Late-Titled-Tuesday-Blitz-January-16-2024"]
[Site "Chess.com"]
[Date "2024.01.16"]
[Round "8"]
[White "Pachonpower"]
[Black "PNEPaul"]
[Result "1-0"]
[WhiteElo "2249"]
[BlackElo "1912"]
[TimeControl "180+1"]
[EndTime "15:28:10 PST"]
[Termination "Pachonpower won on time"]

1. e4 {[%clk 0:03:00.9]} 1... e5 {[%clk 0:02:59.6]} 2. Nf3 {[%clk 0:03:00.8]}
2... Nc6 {[%clk 0:02:59.8]} 3. Bc4 {[%clk 0:03:00.8]} 3... Be7 {[%clk 0:03:00]}
4. O-O {[%clk 0:03:01.1]} 4... Nf6 {[%clk 0:03:00]} 5. d4 {[%clk 0:03:01.7]}
5... Nxe4 {[%clk 0:02:55.6]} 6. dxe5 {[%clk 0:02:58.1]} 6... Nc5 {[%clk
0:02:54]} 7. Nc3 {[%clk 0:02:56.5]} 7... Ne6 {[%clk 0:02:53.8]} 8. Nd5 {[%clk
0:02:56.4]} 8... O-O {[%clk 0:02:41.9]} 9. Re1 {[%clk 0:02:55.2]} 9... h6 {[%clk
0:02:33]} 10. a3 {[%clk 0:02:54.2]} 10... d6 {[%clk 0:02:29]} 11. exd6 {[%clk
0:02:41.3]} 11... Bxd6 {[%clk 0:02:28.6]} 12. b4 {[%clk 0:02:35.4]} 12... a6
{[%clk 0:02:26.8]} 13. Bb2 {[%clk 0:02:35.1]} 13... Ng5 {[%clk 0:02:14.5]} 14.
Nxg5 {[%clk 0:02:10]} 14... Qxg5 {[%clk 0:02:11.9]} 15. f4 {[%clk 0:02:09.1]}
15... Bxf4 {[%clk 0:01:58.8]} 16. Nxf4 {[%clk 0:02:01.2]} 16... Qxf4 {[%clk
0:01:58]} 17. Bd3 {[%clk 0:02:02.1]} 17... Bf5 {[%clk 0:01:35.5]} 18. Rf1 {[%clk
0:01:58.3]} 18... Qe3+ {[%clk 0:01:35]} 19. Kh1 {[%clk 0:01:55]} 19... Bxd3
{[%clk 0:01:34.5]} 20. cxd3 {[%clk 0:01:55.9]} 20... Nd4 {[%clk 0:00:52.9]} 21.
Qg4 {[%clk 0:01:31.8]} 21... Rad8 {[%clk 0:00:50.1]} 22. Rac1 {[%clk 0:01:19.6]}
22... f5 {[%clk 0:00:43.5]} 23. Qh4 {[%clk 0:01:04.2]} 23... Rd7 {[%clk
0:00:19.3]} 24. Rfe1 {[%clk 0:00:54]} 24... Qg5 {[%clk 0:00:18.4]} 25. Qf2
{[%clk 0:00:46.4]} 25... Nc6 {[%clk 0:00:14.8]} 26. d4 {[%clk 0:00:44.5]} 26...
f4 {[%clk 0:00:14.3]} 27. Rcd1 {[%clk 0:00:43.6]} 27... f3 {[%clk 0:00:13.7]}
28. gxf3 {[%clk 0:00:43.4]} 28... Rdf7 {[%clk 0:00:10.7]} 29. Rg1 {[%clk
0:00:42.7]} 29... Qf4 {[%clk 0:00:09.9]} 30. d5 {[%clk 0:00:42]} 30... Ne5
{[%clk 0:00:07.6]} 31. Qd4 {[%clk 0:00:29.9]} 31... Qxf3+ {[%clk 0:00:06.3]} 32.
Rg2 {[%clk 0:00:29.9]} 1-0

[Event "Late-Titled-Tuesday-Blitz-January-16-2024"]
[Site "Chess.com"]
[Date "2024.01.16"]
[Round "8"]
[White "KNVB"]
[Black "dmitrijiIM"]
[Result "0-1"]
[WhiteElo "2708"]
[BlackElo "2884"]
[TimeControl "180+1"]
[EndTime "15:28:15 PST"]
[Termination "dmitrijiIM won on time"]

1. d4 {[%clk 0:03:00.3]} 1... Nf6 {[%clk 0:02:59.8]} 2. Bf4 {[%clk 0:02:59.4]}
2... e6 {[%clk 0:02:59.3]} 3. e3 {[%clk 0:02:59.9]} 3... d5 {[%clk 0:03:00.2]}
4. Nf3 {[%clk 0:03:00.4]} 4... c5 {[%clk 0:03:00.3]} 5. c3 {[%clk 0:03:00.7]}
5... Nc6 {[%clk 0:02:55.7]} 6. Nbd2 {[%clk 0:03:01]} 6... cxd4 {[%clk
0:02:55.8]} 7. exd4 {[%clk 0:03:01.9]} 7... Nh5 {[%clk 0:02:56]} 8. Be3 {[%clk
0:03:00.2]} 8... Bd6 {[%clk 0:02:56.4]} 9. g3 {[%clk 0:03:00.4]} 9... O-O {[%clk
0:02:54.1]} 10. Bd3 {[%clk 0:03:00.7]} 10... f5 {[%clk 0:02:53.5]} 11. Ne5
{[%clk 0:03:00.2]} 11... Nf6 {[%clk 0:02:52.9]} 12. Ndf3 {[%clk 0:02:59.5]}
12... Qc7 {[%clk 0:02:49.7]} 13. Bf4 {[%clk 0:02:57.3]} 13... Ne4 {[%clk
0:02:50]} 14. Qe2 {[%clk 0:02:49.8]} 14... Bd7 {[%clk 0:02:48.9]} 15. O-O {[%clk
0:02:19.7]} 15... Be8 {[%clk 0:02:44.9]} 16. Nxc6 {[%clk 0:02:19.8]} 16... Bxf4
{[%clk 0:02:20]} 17. Nce5 {[%clk 0:01:30.4]} 17... Bh6 {[%clk 0:02:14.6]} 18.
Nh4 {[%clk 0:01:23.1]} 18... Bg5 {[%clk 0:01:14.2]} 19. Ng2 {[%clk 0:01:17.9]}
19... Rb8 {[%clk 0:01:07.9]} 20. Bb5 {[%clk 0:00:40.9]} 20... Bxb5 {[%clk
0:00:52]} 21. Qxb5 {[%clk 0:00:41.8]} 21... Bf6 {[%clk 0:00:45]} 22. Nd7 {[%clk
0:00:10.6]} 22... a6 {[%clk 0:00:44.2]} 23. Qa4 {[%clk 0:00:11.1]} 23... b5
{[%clk 0:00:41]} 24. Nxf6+ {[%clk 0:00:11.1]} 24... Rxf6 {[%clk 0:00:41.5]} 25.
Qxa6 {[%clk 0:00:09.7]} 25... Nd2 {[%clk 0:00:29.6]} 26. Rfd1 {[%clk 0:00:03.3]}
26... Nf3+ {[%clk 0:00:29.7]} 27. Kf1 {[%clk 0:00:02.2]} 27... Qc4+ {[%clk
0:00:19.2]} 0-1

[Event "Late-Titled-Tuesday-Blitz-January-16-2024"]
[Site "Chess.com"]
[Date "2024.01.16"]
[Round "8"]
[White "ToddBryant"]
[Black "Rdeux42"]
[Result "0-1"]
[WhiteElo "2298"]
[BlackElo "2462"]
[TimeControl "180+1"]
[EndTime "15:28:18 PST"]
[Termination "Rdeux42 won by checkmate"]

1. e4 {[%clk 0:03:00.9]} 1... e6 {[%clk 0:02:56.4]} 2. d4 {[%clk 0:03:00.3]}
2... d5 {[%clk 0:02:55.5]} 3. e5 {[%clk 0:03:00.9]} 3... c5 {[%clk 0:02:54.6]}
4. c3 {[%clk 0:03:01.6]} 4... cxd4 {[%clk 0:02:54.2]} 5. cxd4 {[%clk 0:02:59]}
5... Nc6 {[%clk 0:02:54.7]} 6. Nf3 {[%clk 0:02:59.4]} 6... Nh6 {[%clk
0:02:54.3]} 7. Bxh6 {[%clk 0:02:56.3]} 7... gxh6 {[%clk 0:02:55.2]} 8. Nc3
{[%clk 0:02:56.5]} 8... Bd7 {[%clk 0:02:53.6]} 9. Bd3 {[%clk 0:02:52.7]} 9...
Qb6 {[%clk 0:02:45]} 10. Ne2 {[%clk 0:02:31.1]} 10... Bb4+ {[%clk 0:02:28.7]}
11. Kf1 {[%clk 0:02:31.5]} 11... O-O-O {[%clk 0:01:57]} 12. a3 {[%clk
0:02:30.5]} 12... Be7 {[%clk 0:01:56]} 13. b4 {[%clk 0:02:31.1]} 13... Kb8
{[%clk 0:01:53.5]} 14. g3 {[%clk 0:02:11.4]} 14... f6 {[%clk 0:01:45.4]} 15. b5
{[%clk 0:01:54]} 15... Na5 {[%clk 0:01:40.4]} 16. exf6 {[%clk 0:01:47.6]} 16...
Bxf6 {[%clk 0:01:41.3]} 17. Kg2 {[%clk 0:01:47.6]} 17... Rhf8 {[%clk 0:00:59.8]}
18. Rb1 {[%clk 0:01:32.9]} 18... h5 {[%clk 0:00:57.8]} 19. Qd2 {[%clk
0:01:29.9]} 19... h4 {[%clk 0:00:54.4]} 20. Qf4+ {[%clk 0:01:16.9]} 20... Ka8
{[%clk 0:00:42.7]} 21. Nxh4 {[%clk 0:01:13.3]} 21... e5 {[%clk 0:00:26.4]} 22.
Qh6 {[%clk 0:00:40.7]} 22... e4 {[%clk 0:00:13.2]} 23. Bc2 {[%clk 0:00:40.9]}
23... Bxd4 {[%clk 0:00:12.1]} 24. Qxb6 {[%clk 0:00:33.7]} 24... Rxf2+ {[%clk
0:00:11.3]} 25. Kg1 {[%clk 0:00:20.7]} 25... Bxb6 {[%clk 0:00:12.2]} 26. Bd1
{[%clk 0:00:11.7]} 26... Bh3 {[%clk 0:00:08.8]} 27. Ba4 {[%clk 0:00:04.1]} 27...
Rf1# {[%clk 0:00:06.7]} 0-1

[Event "Late-Titled-Tuesday-Blitz-January-16-2024"]
[Site "Chess.com"]
[Date "2024.01.16"]
[Round "8"]
[White "TigrVShlyape"]
[Black "mr_gustavo"]
[Result "1-0"]
[WhiteElo "2945"]
[BlackElo "2748"]
[TimeControl "180+1"]
[EndTime "15:28:25 PST"]
[Termination "TigrVShlyape won by resignation"]

1. e4 {[%clk 0:03:00.9]} 1... c5 {[%clk 0:02:59.2]} 2. Nf3 {[%clk 0:02:59]} 2...
d6 {[%clk 0:02:59.5]} 3. d4 {[%clk 0:02:58.8]} 3... cxd4 {[%clk 0:03:00.4]} 4.
Nxd4 {[%clk 0:02:59.1]} 4... Nf6 {[%clk 0:03:01]} 5. Nc3 {[%clk 0:02:59.4]} 5...
Nc6 {[%clk 0:03:01.6]} 6. Be2 {[%clk 0:02:58.4]} 6... e5 {[%clk 0:03:01.4]} 7.
Nf3 {[%clk 0:02:57.7]} 7... Be7 {[%clk 0:02:59.6]} 8. O-O {[%clk 0:02:57.4]}
8... O-O {[%clk 0:02:59.7]} 9. Re1 {[%clk 0:02:54.6]} 9... h6 {[%clk 0:02:58.5]}
10. Bf1 {[%clk 0:02:52.8]} 10... Be6 {[%clk 0:02:57.8]} 11. Nd5 {[%clk
0:02:50.6]} 11... Bxd5 {[%clk 0:02:47.6]} 12. exd5 {[%clk 0:02:49.7]} 12... Nb4
{[%clk 0:02:48.2]} 13. c4 {[%clk 0:02:48.8]} 13... a5 {[%clk 0:02:48.2]} 14. Nd2
{[%clk 0:02:41.8]} 14... Rc8 {[%clk 0:02:47]} 15. a3 {[%clk 0:02:40]} 15... Na6
{[%clk 0:02:47.2]} 16. Nb1 {[%clk 0:02:39.5]} 16... Ne8 {[%clk 0:02:40.8]} 17.
Nc3 {[%clk 0:02:39.5]} 17... Bg5 {[%clk 0:02:39.6]} 18. Rb1 {[%clk 0:02:35.5]}
18... Bxc1 {[%clk 0:02:38.8]} 19. Qxc1 {[%clk 0:02:35.6]} 19... f5 {[%clk
0:02:34.3]} 20. b4 {[%clk 0:02:32.6]} 20... axb4 {[%clk 0:02:35.2]} 21. axb4
{[%clk 0:02:32.5]} 21... Nf6 {[%clk 0:02:35.8]} 22. Qd2 {[%clk 0:02:21]} 22...
Kh8 {[%clk 0:02:26.6]} 23. h3 {[%clk 0:02:17.2]} 23... Nb8 {[%clk 0:02:25.9]}
24. c5 {[%clk 0:02:15.9]} 24... dxc5 {[%clk 0:02:24.3]} 25. bxc5 {[%clk
0:02:09.6]} 25... Rxc5 {[%clk 0:02:25.2]} 26. Rxe5 {[%clk 0:02:03.1]} 26... Qc8
{[%clk 0:02:01.8]} 27. Nb5 {[%clk 0:02:01.8]} 27... Ne4 {[%clk 0:01:59.8]} 28.
Qd4 {[%clk 0:02:00.5]} 28... Rc1 {[%clk 0:00:48.9]} 29. Re7 {[%clk 0:01:47.1]}
29... Rg8 {[%clk 0:00:48.5]} 30. Rxc1 {[%clk 0:01:22.5]} 30... Qxc1 {[%clk
0:00:49.4]} 31. Rc7 {[%clk 0:01:21.3]} 31... Qf4 {[%clk 0:00:39.3]} 32. Rxb7
{[%clk 0:01:16.9]} 32... Qc1 {[%clk 0:00:17.2]} 33. Rc7 {[%clk 0:01:12.8]} 33...
Qb1 {[%clk 0:00:17.6]} 34. d6 {[%clk 0:01:07]} 34... Na6 {[%clk 0:00:18.1]} 35.
Rc4 {[%clk 0:01:04]} 35... Nb8 {[%clk 0:00:06.2]} 36. Nc3 {[%clk 0:01:02.7]}
36... Qe1 {[%clk 0:00:03.8]} 37. Nxe4 {[%clk 0:01:02.4]} 37... fxe4 {[%clk
0:00:03.4]} 38. d7 {[%clk 0:01:02.7]} 38... Nxd7 {[%clk 0:00:02.5]} 39. Qxd7
{[%clk 0:01:01.8]} 39... e3 {[%clk 0:00:03.4]} 40. fxe3 {[%clk 0:01:01.9]} 40...
Qxe3+ {[%clk 0:00:04.3]} 41. Kh2 {[%clk 0:01:01]} 41... Rf8 {[%clk 0:00:04]} 42.
Qd3 {[%clk 0:00:58.7]} 42... Qf2 {[%clk 0:00:03.5]} 43. Be2 {[%clk 0:00:58.2]}
43... Re8 {[%clk 0:00:03.7]} 44. Bf3 {[%clk 0:00:57.6]} 44... Qe1 {[%clk
0:00:02.5]} 45. Qc3 {[%clk 0:00:55.7]} 45... Qf2 {[%clk 0:00:02.2]} 46. Rc7
{[%clk 0:00:55.5]} 46... Rg8 {[%clk 0:00:02.5]} 47. Rc6 {[%clk 0:00:54.7]} 47...
Re8 {[%clk 0:00:01.5]} 48. Rxh6+ {[%clk 0:00:54.4]} 48... Kg8 {[%clk 0:00:02.4]}
49. Bd5+ {[%clk 0:00:54.5]} 49... Kf8 {[%clk 0:00:03.1]} 50. Qb4+ {[%clk
0:00:54.6]} 1-0